[Event "*** Titled Tuesday Blitz"]
[Site "Chess.com"]
[Date "2020.05.19"]
[Round "2"]
[White "Azoulas1"]
[Black "czasnaszachy"]
[Result "1-0"]
[WhiteElo "1962"]
[BlackElo "2346"]
[TimeControl "180+1"]
[EndTime "12:18:12 PDT"]
[Termination "Azoulas1 won on time"]

1. e4 {[%clk 0:03:00.9]} 1... c5 {[%clk 0:02:56.5]} 2. Nf3 {[%clk 0:03:00.2]}
2... d6 {[%clk 0:02:56.7]} 3. d4 {[%clk 0:02:58.5]} 3... cxd4 {[%clk 0:02:56.7]}
4. Nxd4 {[%clk 0:02:58.2]} 4... Nf6 {[%clk 0:02:56.9]} 5. Nc3 {[%clk 0:02:57.5]}
5... a6 {[%clk 0:02:56.9]} 6. Bg5 {[%clk 0:02:56.9]} 6... e6 {[%clk 0:02:56.2]}
7. f4 {[%clk 0:02:56.5]} 7... h6 {[%clk 0:02:56.3]} 8. Bxf6 {[%clk 0:02:51.4]}
8... Qxf6 {[%clk 0:02:55.9]} 9. Qd2 {[%clk 0:02:50]} 9... Nc6 {[%clk 0:02:55.5]}
10. Nxc6 {[%clk 0:02:48.7]} 10... bxc6 {[%clk 0:02:54.9]} 11. O-O-O {[%clk
0:02:48.1]} 11... d5 {[%clk 0:02:47.8]} 12. g4 {[%clk 0:02:42.2]} 12... g5
{[%clk 0:02:39.9]} 13. f5 {[%clk 0:02:37.7]} 13... Bb4 {[%clk 0:02:23.7]} 14.
Bd3 {[%clk 0:02:16.7]} 14... d4 {[%clk 0:02:12.6]} 15. e5 {[%clk 0:02:03.2]}
15... Qxe5 {[%clk 0:02:06.6]} 16. Qg2 {[%clk 0:02:00.8]} 16... Rb8 {[%clk
0:01:24.9]} 17. Ne4 {[%clk 0:01:41.9]} 17... O-O {[%clk 0:00:56.6]} 18. h4
{[%clk 0:01:33.9]} 18... Bc3 {[%clk 0:00:20.4]} 19. b3 {[%clk 0:01:21.5]} 19...
Qa5 {[%clk 0:00:18.5]} 20. Nxc3 {[%clk 0:00:51.7]} 20... dxc3 {[%clk 0:00:17.8]}
21. Rdg1 {[%clk 0:00:42.2]} 21... Qb4 {[%clk 0:00:17.5]} 22. hxg5 {[%clk
0:00:36.6]} 22... Qf4+ {[%clk 0:00:11.5]} 23. Kd1 {[%clk 0:00:30.3]} 23... c5
{[%clk 0:00:07.3]} 24. Rxh6 {[%clk 0:00:21.5]} 24... Bb7 {[%clk 0:00:07.2]} 25.
Qh2 {[%clk 0:00:17.8]} 25... Bf3+ {[%clk 0:00:07]} 26. Ke1 {[%clk 0:00:16.4]}
26... Qe3+ {[%clk 0:00:03.8]} 27. Kf1 {[%clk 0:00:14]} 27... Qc1+ {[%clk
0:00:03]} 28. Kf2 {[%clk 0:00:13.6]} 1-0

[Event "*** Titled Tuesday Blitz"]
[Site "Chess.com"]
[Date "2020.05.19"]
[Round "2"]
[White "ZverevLev"]
[Black "grzechu96"]
[Result "1-0"]
[WhiteElo "2171"]
[BlackElo "2577"]
[TimeControl "180+1"]
[EndTime "12:18:14 PDT"]
[Termination "ZverevLev won by resignation"]

1. e4 {[%clk 0:03:00.9]} 1... e5 {[%clk 0:02:58.8]} 2. Nf3 {[%clk 0:02:59.7]}
2... Nc6 {[%clk 0:02:59]} 3. Bb5 {[%clk 0:02:58.7]} 3... a6 {[%clk 0:02:58.8]}
4. Ba4 {[%clk 0:02:57.7]} 4... Nf6 {[%clk 0:02:58.9]} 5. O-O {[%clk 0:02:55.5]}
5... Be7 {[%clk 0:02:58.9]} 6. d3 {[%clk 0:02:49.8]} 6... b5 {[%clk 0:02:53.6]}
7. Bb3 {[%clk 0:02:48.3]} 7... d6 {[%clk 0:02:54.1]} 8. c3 {[%clk 0:02:46.5]}
8... O-O {[%clk 0:02:53]} 9. Nbd2 {[%clk 0:02:44.9]} 9... Na5 {[%clk 0:02:52.7]}
10. Bc2 {[%clk 0:02:43.8]} 10... c5 {[%clk 0:02:53.2]} 11. Re1 {[%clk
0:02:42.8]} 11... Nc6 {[%clk 0:02:51.9]} 12. Nf1 {[%clk 0:02:42.1]} 12... Re8
{[%clk 0:02:51.6]} 13. Ng3 {[%clk 0:02:41.6]} 13... h6 {[%clk 0:02:46.2]} 14. h3
{[%clk 0:02:41.2]} 14... Bf8 {[%clk 0:02:46.5]} 15. d4 {[%clk 0:02:38.7]} 15...
cxd4 {[%clk 0:02:27.4]} 16. cxd4 {[%clk 0:02:39.6]} 16... exd4 {[%clk
0:02:05.8]} 17. Nxd4 {[%clk 0:02:40.5]} 17... Bb7 {[%clk 0:02:06.3]} 18. a3
{[%clk 0:02:09.5]} 18... d5 {[%clk 0:01:35.1]} 19. Nxc6 {[%clk 0:02:06.3]} 19...
Bxc6 {[%clk 0:01:35.1]} 20. e5 {[%clk 0:02:06.4]} 20... Ne4 {[%clk 0:01:35.6]}
21. Bf4 {[%clk 0:01:44.7]} 21... Qh4 {[%clk 0:01:07.9]} 22. Qg4 {[%clk 0:01:32]}
22... Qxg4 {[%clk 0:01:07.8]} 23. hxg4 {[%clk 0:01:32.9]} 23... Nc5 {[%clk
0:00:58.7]} 24. Rac1 {[%clk 0:01:27.1]} 24... Ne6 {[%clk 0:00:58.7]} 25. Bd2
{[%clk 0:01:25]} 25... Rac8 {[%clk 0:00:58.2]} 26. Nf5 {[%clk 0:01:21.4]} 26...
Red8 {[%clk 0:00:49.8]} 27. Bb3 {[%clk 0:01:17.5]} 27... Ba8 {[%clk 0:00:46.4]}
28. Be3 {[%clk 0:01:10.9]} 28... Rxc1 {[%clk 0:00:21.4]} 29. Rxc1 {[%clk
0:01:08.9]} 29... d4 {[%clk 0:00:21.8]} 30. Bd2 {[%clk 0:01:00.6]} 30... Nc5
{[%clk 0:00:22.2]} 31. Ba2 {[%clk 0:00:59.7]} 31... Nd3 {[%clk 0:00:21]} 32. Rc7
{[%clk 0:00:57.8]} 32... Nxe5 {[%clk 0:00:21.1]} 33. Bf4 {[%clk 0:00:47.5]}
33... Bd5 {[%clk 0:00:19.9]} 34. Bxd5 {[%clk 0:00:43.8]} 34... Rxd5 {[%clk
0:00:20.8]} 35. Rc8 {[%clk 0:00:43.5]} 35... Ng6 {[%clk 0:00:21.2]} 36. Bd6
{[%clk 0:00:40]} 36... d3 {[%clk 0:00:19.9]} 37. Bxf8 {[%clk 0:00:38.3]} 37...
Nxf8 {[%clk 0:00:18.1]} 38. Ne7+ {[%clk 0:00:37.5]} 38... Kh7 {[%clk 0:00:18.7]}
39. Nxd5 {[%clk 0:00:38.4]} 39... d2 {[%clk 0:00:19]} 40. Ne3 {[%clk 0:00:38.2]}
1-0

[Event "*** Titled Tuesday Blitz"]
[Site "Chess.com"]
[Date "2020.05.19"]
[Round "2"]
[White "doons21"]
[Black "vladislavkovalev"]
[Result "0-1"]
[WhiteElo "2553"]
[BlackElo "2907"]
[TimeControl "180+1"]
[EndTime "12:18:15 PDT"]
[Termination "vladislavkovalev won by resignation"]

1. e4 {[%clk 0:03:00.9]} 1... e5 {[%clk 0:02:59.4]} 2. Nf3 {[%clk 0:03:00.6]}
2... Nc6 {[%clk 0:02:59.9]} 3. Nc3 {[%clk 0:02:56.9]} 3... Nf6 {[%clk
0:02:59.4]} 4. g3 {[%clk 0:02:57.4]} 4... Bc5 {[%clk 0:02:57.3]} 5. Bg2 {[%clk
0:02:56.8]} 5... d6 {[%clk 0:02:56.5]} 6. d3 {[%clk 0:02:55.5]} 6... a6 {[%clk
0:02:56.7]} 7. h3 {[%clk 0:02:53.2]} 7... Ba7 {[%clk 0:02:56.6]} 8. O-O {[%clk
0:02:48]} 8... h6 {[%clk 0:02:57]} 9. Be3 {[%clk 0:02:46.3]} 9... Bxe3 {[%clk
0:02:51.6]} 10. fxe3 {[%clk 0:02:47.2]} 10... Ne7 {[%clk 0:02:52.2]} 11. Nh4
{[%clk 0:02:46.5]} 11... Ng6 {[%clk 0:02:46.1]} 12. Nf5 {[%clk 0:02:35.3]} 12...
O-O {[%clk 0:02:44.4]} 13. Qf3 {[%clk 0:02:30.9]} 13... Kh7 {[%clk 0:02:21.9]}
14. d4 {[%clk 0:02:08.5]} 14... Re8 {[%clk 0:02:11.3]} 15. Rad1 {[%clk
0:02:05.3]} 15... Be6 {[%clk 0:01:52.1]} 16. a4 {[%clk 0:01:59.5]} 16... Rb8
{[%clk 0:01:48.2]} 17. g4 {[%clk 0:01:45.1]} 17... b5 {[%clk 0:01:45.8]} 18.
axb5 {[%clk 0:01:44.6]} 18... axb5 {[%clk 0:01:46.7]} 19. b4 {[%clk 0:01:38.5]}
19... Ra8 {[%clk 0:01:37.5]} 20. Rd2 {[%clk 0:01:20.1]} 20... Bc4 {[%clk
0:01:37.4]} 21. Re1 {[%clk 0:01:14]} 21... Ra3 {[%clk 0:01:37.9]} 22. Nb1 {[%clk
0:01:05]} 22... Ra1 {[%clk 0:01:38.2]} 23. Rdd1 {[%clk 0:01:02.6]} 23... Qd7
{[%clk 0:01:30.8]} 24. Nd2 {[%clk 0:01:01.4]} 24... Ra2 {[%clk 0:01:28.9]} 25.
Nxc4 {[%clk 0:00:59.5]} 25... bxc4 {[%clk 0:01:29.8]} 26. Rd2 {[%clk 0:00:58.2]}
26... c3 {[%clk 0:01:25.3]} 27. Rf2 {[%clk 0:00:58.1]} 27... exd4 {[%clk
0:01:21.7]} 28. Nxg7 {[%clk 0:00:51.1]} 28... dxe3 {[%clk 0:01:16.2]} 29. Rxe3
{[%clk 0:00:43.3]} 29... Kxg7 {[%clk 0:01:16.5]} 30. Qxf6+ {[%clk 0:00:42.9]}
30... Kg8 {[%clk 0:01:17.2]} 31. Rxc3 {[%clk 0:00:34.4]} 31... Qe7 {[%clk
0:01:14.3]} 32. Qxe7 {[%clk 0:00:25.9]} 32... Rxe7 {[%clk 0:01:15.2]} 33. Rf5
{[%clk 0:00:23.4]} 33... Ne5 {[%clk 0:01:11.9]} 34. Bf1 {[%clk 0:00:20.8]} 34...
Ra1 {[%clk 0:01:09]} 35. Kf2 {[%clk 0:00:20.4]} 35... c6 {[%clk 0:01:06.5]} 36.
Bd3 {[%clk 0:00:20.4]} 36... Rb1 {[%clk 0:01:04.3]} 37. Rf6 {[%clk 0:00:20.3]}
37... Re6 {[%clk 0:01:01.9]} 38. Rxe6 {[%clk 0:00:20.3]} 38... fxe6 {[%clk
0:01:02.8]} 39. b5 {[%clk 0:00:19.3]} 39... cxb5 {[%clk 0:00:57.6]} 40. Rc7
{[%clk 0:00:19.7]} 40... b4 {[%clk 0:00:51.8]} 41. Ke3 {[%clk 0:00:18.8]} 41...
Rh1 {[%clk 0:00:50]} 42. Re7 {[%clk 0:00:17.5]} 42... Rxh3+ {[%clk 0:00:44]} 43.
Ke2 {[%clk 0:00:18]} 43... b3 {[%clk 0:00:40.9]} 44. c3 {[%clk 0:00:18.2]} 44...
Rxd3 {[%clk 0:00:40.1]} 0-1

[Event "*** Titled Tuesday Blitz"]
[Site "Chess.com"]
[Date "2020.05.19"]
[Round "2"]
[White "Camels1981"]
[Black "Korchmar_Vasiliy"]
[Result "1-0"]
[WhiteElo "2340"]
[BlackElo "2612"]
[TimeControl "180+1"]
[EndTime "12:18:15 PDT"]
[Termination "Camels1981 won on time"]

1. e4 {[%clk 0:03:00.9]} 1... c5 {[%clk 0:03:00]} 2. Nf3 {[%clk 0:03:00.3]} 2...
d6 {[%clk 0:03:00.5]} 3. d4 {[%clk 0:03:00.2]} 3... cxd4 {[%clk 0:03:01.4]} 4.
Nxd4 {[%clk 0:03:00.2]} 4... Nf6 {[%clk 0:03:02.1]} 5. Nc3 {[%clk 0:03:00.2]}
5... Nc6 {[%clk 0:03:02.6]} 6. Bg5 {[%clk 0:02:44.4]} 6... e6 {[%clk 0:03:02.7]}
7. Qd2 {[%clk 0:02:43.6]} 7... a6 {[%clk 0:03:03.1]} 8. O-O-O {[%clk 0:02:41.9]}
8... h6 {[%clk 0:03:03.4]} 9. Be3 {[%clk 0:02:28.7]} 9... Be7 {[%clk 0:03:02.5]}
10. h3 {[%clk 0:02:26.7]} 10... Nxd4 {[%clk 0:02:57.9]} 11. Bxd4 {[%clk
0:02:26.2]} 11... b5 {[%clk 0:02:58.4]} 12. g4 {[%clk 0:02:23.5]} 12... b4
{[%clk 0:02:57.6]} 13. Na4 {[%clk 0:02:21.8]} 13... Nxe4 {[%clk 0:02:57.6]} 14.
Qe3 {[%clk 0:02:18.3]} 14... d5 {[%clk 0:02:07.5]} 15. Bxg7 {[%clk 0:02:09]}
15... Rg8 {[%clk 0:02:05.9]} 16. Bd4 {[%clk 0:02:03]} 16... Rb8 {[%clk
0:01:45.3]} 17. Be5 {[%clk 0:01:52.5]} 17... Bd7 {[%clk 0:01:27.7]} 18. Bd3
{[%clk 0:01:34.7]} 18... Bxa4 {[%clk 0:00:18.2]} 19. Bxe4 {[%clk 0:01:33.6]}
19... Rc8 {[%clk 0:00:18.6]} 20. Bh7 {[%clk 0:01:24]} 20... Rf8 {[%clk
0:00:13.8]} 21. Kb1 {[%clk 0:01:22.8]} 21... Qa5 {[%clk 0:00:08.5]} 22. Qxh6
{[%clk 0:01:09.9]} 22... f6 {[%clk 0:00:03.8]} 23. Bd4 {[%clk 0:00:58.7]} 23...
Rh8 {[%clk 0:00:04.3]} 24. Rhe1 {[%clk 0:00:50.2]} 24... Rxh7 {[%clk 0:00:03.6]}
25. Qg6+ {[%clk 0:00:28.9]} 25... Rf7 {[%clk 0:00:03.5]} 26. b3 {[%clk
0:00:28.9]} 26... Bd7 {[%clk 0:00:03.8]} 27. Bb2 {[%clk 0:00:25.6]} 27... e5
{[%clk 0:00:03.3]} 28. g5 {[%clk 0:00:24.2]} 28... Qb6 {[%clk 0:00:03.4]} 29.
Qg8+ {[%clk 0:00:21.9]} 29... Rf8 {[%clk 0:00:01.9]} 30. Qg6+ {[%clk 0:00:21.7]}
30... Kd8 {[%clk 0:00:01.2]} 31. gxf6 {[%clk 0:00:19.3]} 1-0

[Event "*** Titled Tuesday Blitz"]
[Site "Chess.com"]
[Date "2020.05.19"]
[Round "2"]
[White "TV27"]
[Black "Gerodot71"]
[Result "0-1"]
[WhiteElo "2100"]
[BlackElo "2409"]
[TimeControl "180+1"]
[EndTime "12:18:15 PDT"]
[Termination "Gerodot71 won on time"]

1. e4 {[%clk 0:02:58.8]} 1... e5 {[%clk 0:02:59.8]} 2. Nf3 {[%clk 0:02:58.2]}
2... Nc6 {[%clk 0:03:00.1]} 3. d4 {[%clk 0:02:57.3]} 3... exd4 {[%clk 0:03:01]}
4. Nxd4 {[%clk 0:02:57.3]} 4... Bc5 {[%clk 0:03:00.9]} 5. Nxc6 {[%clk
0:02:52.6]} 5... bxc6 {[%clk 0:03:01.8]} 6. Qh5 {[%clk 0:02:36.6]} 6... Bb6
{[%clk 0:02:46.2]} 7. Bc4 {[%clk 0:02:34.9]} 7... Qf6 {[%clk 0:02:37.8]} 8. O-O
{[%clk 0:02:30.9]} 8... Ne7 {[%clk 0:02:38.2]} 9. Nc3 {[%clk 0:02:20.2]} 9...
Qg6 {[%clk 0:02:32.1]} 10. Qe2 {[%clk 0:02:02.4]} 10... d6 {[%clk 0:02:30.1]}
11. Kh1 {[%clk 0:01:51.9]} 11... O-O {[%clk 0:02:25.8]} 12. Bd3 {[%clk
0:01:41.3]} 12... Kh8 {[%clk 0:02:17.2]} 13. Be3 {[%clk 0:01:20.4]} 13... f5
{[%clk 0:02:14.8]} 14. Bxb6 {[%clk 0:01:18.4]} 14... axb6 {[%clk 0:02:15.7]} 15.
f3 {[%clk 0:01:17]} 15... Qf6 {[%clk 0:02:10.7]} 16. Bc4 {[%clk 0:00:42.4]}
16... Bd7 {[%clk 0:02:04.4]} 17. Rad1 {[%clk 0:00:40.4]} 17... Rae8 {[%clk
0:02:03.3]} 18. e5 {[%clk 0:00:39.7]} 18... Qh6 {[%clk 0:01:58.4]} 19. e6 {[%clk
0:00:37]} 19... Bc8 {[%clk 0:01:58.1]} 20. Rfe1 {[%clk 0:00:32.2]} 20... Ng6
{[%clk 0:01:57.5]} 21. Qd2 {[%clk 0:00:21.8]} 21... Qxd2 {[%clk 0:01:54.6]} 22.
Rxd2 {[%clk 0:00:21.6]} 22... Ne5 {[%clk 0:01:55.1]} 23. Bb3 {[%clk 0:00:17.1]}
23... f4 {[%clk 0:01:55.2]} 24. Ne4 {[%clk 0:00:15.3]} 24... h6 {[%clk
0:01:51.8]} 25. Nxd6 {[%clk 0:00:13.9]} 25... cxd6 {[%clk 0:01:51.3]} 26. Rxd6
{[%clk 0:00:13.1]} 26... Rf5 {[%clk 0:01:45.4]} 27. Re4 {[%clk 0:00:08.8]} 27...
g5 {[%clk 0:01:42.1]} 28. h3 {[%clk 0:00:08]} 28... Kg7 {[%clk 0:01:41.5]} 29.
c3 {[%clk 0:00:05.5]} 29... Re7 {[%clk 0:01:39.8]} 30. Bc2 {[%clk 0:00:04.5]}
30... Rxe6 {[%clk 0:01:33.4]} 31. Rxe6 {[%clk 0:00:03.7]} 31... Bxe6 {[%clk
0:01:34.3]} 32. Rd4 {[%clk 0:00:04]} 32... Rf7 {[%clk 0:01:33.6]} 33. Rd6 {[%clk
0:00:03.7]} 33... Rf6 {[%clk 0:01:29]} 34. Rd8 {[%clk 0:00:02.4]} 34... Bf7
{[%clk 0:01:26.1]} 35. Rb8 {[%clk 0:00:03.3]} 35... b5 {[%clk 0:01:25.4]} 36.
Rb7 {[%clk 0:00:03]} 36... Rd6 {[%clk 0:01:23.6]} 37. Bb3 {[%clk 0:00:03.6]}
37... Rd7 {[%clk 0:01:23.9]} 38. Rxd7 {[%clk 0:00:02.1]} 38... Nxd7 {[%clk
0:01:24.8]} 39. Bxf7 {[%clk 0:00:02.2]} 39... Kxf7 {[%clk 0:01:25.4]} 40. Kg1
{[%clk 0:00:02.7]} 40... Ke6 {[%clk 0:01:25.5]} 41. Kf2 {[%clk 0:00:03.6]} 41...
Nc5 {[%clk 0:01:23.8]} 42. Ke2 {[%clk 0:00:04.5]} 42... Na4 {[%clk 0:01:24.1]}
43. b3 {[%clk 0:00:02.6]} 43... Nxc3+ {[%clk 0:01:24.3]} 44. Kd3 {[%clk
0:00:03.5]} 44... Nxa2 {[%clk 0:01:24.1]} 45. Kd4 {[%clk 0:00:04.2]} 45... Kd6
{[%clk 0:01:23.1]} 46. Ke4 {[%clk 0:00:04.1]} 46... c5 {[%clk 0:01:23.5]} 47.
Kf5 {[%clk 0:00:04]} 47... c4 {[%clk 0:01:23.8]} 48. bxc4 {[%clk 0:00:04.1]}
48... bxc4 {[%clk 0:01:24.7]} 49. Kg6 {[%clk 0:00:04.3]} 49... c3 {[%clk
0:01:25.1]} 50. Kh5 {[%clk 0:00:03.3]} 50... c2 {[%clk 0:01:26]} 51. h4 {[%clk
0:00:03.4]} 51... gxh4 {[%clk 0:01:25.5]} 52. Kg4 {[%clk 0:00:02.8]} 52... c1=Q
{[%clk 0:01:25.4]} 53. Kh3 {[%clk 0:00:02.5]} 53... Qe1 {[%clk 0:01:24.3]} 54.
Kg4 {[%clk 0:00:02]} 54... Ke5 {[%clk 0:01:24.1]} 55. Kh5 {[%clk 0:00:01.4]}
55... Qg3 {[%clk 0:01:24.5]} 56. Kxh6 {[%clk 0:00:01]} 56... Kf6 {[%clk
0:01:24.9]} 0-1

[Event "*** Titled Tuesday Blitz"]
[Site "Chess.com"]
[Date "2020.05.19"]
[Round "2"]
[White "Zkid"]
[Black "x-3738459472"]
[Result "1-0"]
[WhiteElo "2809"]
[BlackElo "2516"]
[TimeControl "180+1"]
[EndTime "12:18:16 PDT"]
[Termination "Zkid won by resignation"]

1. c4 {[%clk 0:03:00.9]} 1... Nf6 {[%clk 0:02:58.6]} 2. g3 {[%clk 0:03:00.8]}
2... e5 {[%clk 0:02:55]} 3. Bg2 {[%clk 0:03:00.5]} 3... h6 {[%clk 0:02:54.2]} 4.
Nf3 {[%clk 0:02:56.1]} 4... e4 {[%clk 0:02:53.4]} 5. Nd4 {[%clk 0:02:56.1]} 5...
d5 {[%clk 0:02:52.9]} 6. cxd5 {[%clk 0:02:55.1]} 6... Qxd5 {[%clk 0:02:52.5]} 7.
Nc2 {[%clk 0:02:55.6]} 7... Qh5 {[%clk 0:02:49.4]} 8. h3 {[%clk 0:02:45.2]} 8...
Bc5 {[%clk 0:02:47.9]} 9. Nc3 {[%clk 0:02:44.1]} 9... O-O {[%clk 0:02:46.1]} 10.
Nxe4 {[%clk 0:02:39.8]} 10... Nxe4 {[%clk 0:02:45.7]} 11. Bxe4 {[%clk
0:02:40.7]} 11... Re8 {[%clk 0:02:42.3]} 12. d3 {[%clk 0:02:37]} 12... Nc6
{[%clk 0:02:38.1]} 13. Be3 {[%clk 0:02:28.8]} 13... Bd6 {[%clk 0:02:27.4]} 14.
Qd2 {[%clk 0:02:20.2]} 14... Be6 {[%clk 0:02:20.1]} 15. Bf3 {[%clk 0:02:06.5]}
15... Qg6 {[%clk 0:02:17.9]} 16. h4 {[%clk 0:01:58.6]} 16... Rad8 {[%clk
0:02:16.8]} 17. O-O {[%clk 0:01:52.4]} 17... Ne5 {[%clk 0:01:38.7]} 18. Bg2
{[%clk 0:01:42.8]} 18... c5 {[%clk 0:01:38.1]} 19. Bf4 {[%clk 0:01:36.9]} 19...
b6 {[%clk 0:01:23.7]} 20. Qc3 {[%clk 0:01:29.5]} 20... Bg4 {[%clk 0:01:20]} 21.
Rfe1 {[%clk 0:01:26.3]} 21... Bb8 {[%clk 0:01:10.2]} 22. Ne3 {[%clk 0:01:19.6]}
22... Bc8 {[%clk 0:01:05.9]} 23. a4 {[%clk 0:01:08.2]} 23... Ng4 {[%clk
0:00:55.1]} 24. Bxb8 {[%clk 0:00:59.8]} 24... Nxe3 {[%clk 0:00:54.9]} 25. fxe3
{[%clk 0:00:58.9]} 25... Rxe3 {[%clk 0:00:50]} 26. Kf2 {[%clk 0:00:52.8]} 26...
Ree8 {[%clk 0:00:41.7]} 27. Bf4 {[%clk 0:00:44.4]} 27... Bg4 {[%clk 0:00:41.4]}
28. Bf3 {[%clk 0:00:38]} 28... Re6 {[%clk 0:00:38.9]} 29. Bxg4 {[%clk
0:00:22.5]} 29... Qxg4 {[%clk 0:00:38.6]} 30. Qd2 {[%clk 0:00:21.4]} 30... Rde8
{[%clk 0:00:37.1]} 31. e4 {[%clk 0:00:20.3]} 31... Rf6 {[%clk 0:00:37.3]} 32.
Kg2 {[%clk 0:00:18.8]} 32... g5 {[%clk 0:00:37.6]} 33. hxg5 {[%clk 0:00:13.7]}
33... hxg5 {[%clk 0:00:38.5]} 34. Bxg5 {[%clk 0:00:14]} 34... Qf3+ {[%clk
0:00:38.2]} 35. Kh2 {[%clk 0:00:11.8]} 35... Re5 {[%clk 0:00:25.6]} 36. Bxf6
{[%clk 0:00:11.4]} 36... Rh5+ {[%clk 0:00:24.9]} 37. Bh4 {[%clk 0:00:11.3]}
37... f5 {[%clk 0:00:24.3]} 38. Rf1 {[%clk 0:00:11]} 38... Qg4 {[%clk
0:00:23.7]} 39. Rxf5 {[%clk 0:00:11.5]} 39... Rxh4+ {[%clk 0:00:23.9]} 40. gxh4
{[%clk 0:00:11.4]} 40... Qxh4+ {[%clk 0:00:24.8]} 41. Kg1 {[%clk 0:00:12]} 41...
Qg4+ {[%clk 0:00:25.7]} 42. Qg2 {[%clk 0:00:12.4]} 1-0

[Event "*** Titled Tuesday Blitz"]
[Site "Chess.com"]
[Date "2020.05.19"]
[Round "2"]
[White "chessablanca"]
[Black "TheBigBadChessDad"]
[Result "1-0"]
[WhiteElo "2463"]
[BlackElo "2260"]
[TimeControl "180+1"]
[EndTime "12:18:16 PDT"]
[Termination "chessablanca won on time"]

1. g3 {[%clk 0:03:00.9]} 1... d5 {[%clk 0:02:54.9]} 2. Bg2 {[%clk 0:03:01]} 2...
c6 {[%clk 0:02:54.6]} 3. Nf3 {[%clk 0:03:01.2]} 3... Nf6 {[%clk 0:02:55.1]} 4.
O-O {[%clk 0:03:01.6]} 4... g6 {[%clk 0:02:55.7]} 5. d4 {[%clk 0:03:01.6]} 5...
Bg7 {[%clk 0:02:56.5]} 6. b3 {[%clk 0:03:01.5]} 6... Bf5 {[%clk 0:02:55.9]} 7.
Bb2 {[%clk 0:03:01.9]} 7... Ne4 {[%clk 0:02:55.9]} 8. Nbd2 {[%clk 0:03:01.6]}
8... Nd7 {[%clk 0:02:55.8]} 9. h3 {[%clk 0:02:59]} 9... Nxd2 {[%clk 0:02:54.8]}
10. Qxd2 {[%clk 0:02:59.8]} 10... Nf6 {[%clk 0:02:53.2]} 11. Ne5 {[%clk
0:02:46.4]} 11... Ne4 {[%clk 0:02:50.8]} 12. Qe3 {[%clk 0:02:46.3]} 12... Nd6
{[%clk 0:02:43.8]} 13. g4 {[%clk 0:02:41.7]} 13... Bc8 {[%clk 0:02:36.8]} 14. c4
{[%clk 0:02:33.5]} 14... e6 {[%clk 0:02:34.8]} 15. cxd5 {[%clk 0:02:28.6]} 15...
cxd5 {[%clk 0:02:34.4]} 16. Bxd5 {[%clk 0:02:24.5]} 16... h5 {[%clk 0:02:27.2]}
17. Bg2 {[%clk 0:02:05.6]} 17... hxg4 {[%clk 0:02:25.1]} 18. hxg4 {[%clk
0:02:02.3]} 18... Qh4 {[%clk 0:02:16.6]} 19. Rfd1 {[%clk 0:01:53.4]} 19... Qh2+
{[%clk 0:01:50.3]} 20. Kf1 {[%clk 0:01:52.7]} 20... Bh6 {[%clk 0:01:35.9]} 21.
Qd3 {[%clk 0:01:37.1]} 21... Ke7 {[%clk 0:00:52.7]} 22. Nf3 {[%clk 0:01:28.9]}
22... Qf4 {[%clk 0:00:49.1]} 23. d5 {[%clk 0:01:29.2]} 23... Rd8 {[%clk
0:00:40]} 24. Bc1 {[%clk 0:01:20.8]} 24... Qxg4 {[%clk 0:00:33.6]} 25. Bxh6
{[%clk 0:01:20.8]} 25... Nf5 {[%clk 0:00:32.4]} 26. Bd2 {[%clk 0:01:06.2]} 26...
Rxd5 {[%clk 0:00:31]} 27. Qc4 {[%clk 0:01:04.4]} 27... Qh5 {[%clk 0:00:19.4]}
28. Bb4+ {[%clk 0:01:03.2]} 28... Ke8 {[%clk 0:00:09.3]} 29. Rxd5 {[%clk
0:01:02.9]} 29... exd5 {[%clk 0:00:09.4]} 30. Qxd5 {[%clk 0:01:02.3]} 30... Ng3+
{[%clk 0:00:05]} 31. fxg3 {[%clk 0:01:00.2]} 31... Qxd5 {[%clk 0:00:05.9]} 32.
Bc3 {[%clk 0:00:56]} 32... Bg4 {[%clk 0:00:04.6]} 33. Nd4 {[%clk 0:00:47.4]}
33... Qe5 {[%clk 0:00:02.5]} 34. Bxb7 {[%clk 0:00:34.2]} 34... Qxg3 {[%clk
0:00:01.8]} 35. Bc6+ {[%clk 0:00:19]} 1-0

[Event "*** Titled Tuesday Blitz"]
[Site "Chess.com"]
[Date "2020.05.19"]
[Round "2"]
[White "pastouche06"]
[Black "politeplayer"]
[Result "1-0"]
[WhiteElo "2445"]
[BlackElo "2205"]
[TimeControl "180+1"]
[EndTime "12:18:16 PDT"]
[Termination "pastouche06 won by resignation"]

1. d4 {[%clk 0:03:00.9]} 1... d5 {[%clk 0:02:58.5]} 2. c4 {[%clk 0:03:00.5]}
2... e6 {[%clk 0:02:58.4]} 3. Nc3 {[%clk 0:03:00.5]} 3... Bb4 {[%clk 0:02:52.9]}
4. e3 {[%clk 0:02:58.9]} 4... Nf6 {[%clk 0:02:51]} 5. a3 {[%clk 0:02:58.4]} 5...
Bxc3+ {[%clk 0:02:50]} 6. bxc3 {[%clk 0:02:59.3]} 6... c6 {[%clk 0:02:49.9]} 7.
a4 {[%clk 0:02:59.1]} 7... O-O {[%clk 0:02:49.5]} 8. Ba3 {[%clk 0:02:58.5]} 8...
Re8 {[%clk 0:02:24.9]} 9. Nf3 {[%clk 0:02:58.3]} 9... Qa5 {[%clk 0:02:18.5]} 10.
Bb4 {[%clk 0:02:48.2]} 10... Qc7 {[%clk 0:02:16.7]} 11. Bd3 {[%clk 0:02:31.5]}
11... dxc4 {[%clk 0:02:15.9]} 12. Bxc4 {[%clk 0:02:31.1]} 12... Nd5 {[%clk
0:02:08.8]} 13. Qd3 {[%clk 0:02:15.6]} 13... Nxb4 {[%clk 0:02:00.9]} 14. cxb4
{[%clk 0:02:16.5]} 14... Nd7 {[%clk 0:01:58.3]} 15. O-O {[%clk 0:02:11.7]} 15...
e5 {[%clk 0:01:47.2]} 16. Ng5 {[%clk 0:02:11]} 16... e4 {[%clk 0:01:08.7]} 17.
Bxf7+ {[%clk 0:01:59.8]} 17... Kh8 {[%clk 0:01:05.4]} 18. Nxe4 {[%clk
0:01:59.5]} 18... Rf8 {[%clk 0:01:00.7]} 19. Bb3 {[%clk 0:01:42.5]} 19... Nf6
{[%clk 0:00:58.7]} 20. Ng5 {[%clk 0:01:28.5]} 20... h6 {[%clk 0:00:43.1]} 21.
Ne6 {[%clk 0:01:23.4]} 21... Bxe6 {[%clk 0:00:43]} 22. Bxe6 {[%clk 0:01:24.3]}
22... Rae8 {[%clk 0:00:43.2]} 23. Bf5 {[%clk 0:01:20.1]} 23... Nd5 {[%clk
0:00:37.9]} 24. Rab1 {[%clk 0:01:18.8]} 24... Qd6 {[%clk 0:00:19.9]} 25. b5
{[%clk 0:01:07.5]} 25... Nb4 {[%clk 0:00:19.5]} 26. Qc4 {[%clk 0:01:02]} 26...
Rxf5 {[%clk 0:00:18.7]} 27. Qxb4 {[%clk 0:01:01.5]} 27... Qg6 {[%clk 0:00:18.7]}
28. bxc6 {[%clk 0:00:51.9]} 28... bxc6 {[%clk 0:00:16.2]} 29. Qc4 {[%clk
0:00:48.2]} 29... Rg5 {[%clk 0:00:15.6]} 30. g3 {[%clk 0:00:48.5]} 30... Qe4
{[%clk 0:00:13.9]} 31. Rfc1 {[%clk 0:00:34]} 31... Re6 {[%clk 0:00:12.9]} 32.
Qc2 {[%clk 0:00:28.7]} 32... Qf3 {[%clk 0:00:11.8]} 33. Rb8+ {[%clk 0:00:27.6]}
1-0